[Event "*** Titled Tuesday Blitz"]
[Site "Chess.com"]
[Date "2020.05.26"]
[Round "5"]
[White "Gabrielian_Artur"]
[Black "stanyga"]
[Result "0-1"]
[WhiteElo "2745"]
[BlackElo "2610"]
[TimeControl "180+1"]
[EndTime "10:57:10 PDT"]
[Termination "stanyga won on time"]

1. e4 {[%clk 0:03:00.9]} 1... c5 {[%clk 0:02:57.7]} 2. Nc3 {[%clk 0:03:00.5]}
2... Nc6 {[%clk 0:02:57.1]} 3. Bb5 {[%clk 0:02:59.7]} 3... Nd4 {[%clk
0:02:54.9]} 4. Bc4 {[%clk 0:02:59.4]} 4... g6 {[%clk 0:02:54.1]} 5. Nf3 {[%clk
0:02:58.3]} 5... Bg7 {[%clk 0:02:53.9]} 6. Nxd4 {[%clk 0:02:58.2]} 6... cxd4
{[%clk 0:02:53.2]} 7. Qf3 {[%clk 0:02:58.2]} 7... Nf6 {[%clk 0:02:46.3]} 8. Ne2
{[%clk 0:02:51.2]} 8... e5 {[%clk 0:02:39.3]} 9. c3 {[%clk 0:02:32.3]} 9... d5
{[%clk 0:02:30]} 10. Bxd5 {[%clk 0:02:14.3]} 10... Bg4 {[%clk 0:02:09.3]} 11.
Qd3 {[%clk 0:01:53.3]} 11... Nxd5 {[%clk 0:02:07.5]} 12. Qb5+ {[%clk 0:01:49.6]}
12... Qd7 {[%clk 0:02:02.6]} 13. Qxd7+ {[%clk 0:01:48.9]} 13... Kxd7 {[%clk
0:02:00.6]} 14. exd5 {[%clk 0:01:49.3]} 14... d3 {[%clk 0:01:49.4]} 15. f3
{[%clk 0:01:46.2]} 15... Bf5 {[%clk 0:01:43.1]} 16. g4 {[%clk 0:01:40.5]} 16...
Bxg4 {[%clk 0:01:37.5]} 17. fxg4 {[%clk 0:01:40]} 17... dxe2 {[%clk 0:01:37.1]}
18. Kxe2 {[%clk 0:01:34.3]} 18... e4 {[%clk 0:01:33.7]} 19. Rf1 {[%clk
0:01:31.4]} 19... Rhf8 {[%clk 0:01:32.4]} 20. b3 {[%clk 0:01:30.9]} 20... f5
{[%clk 0:01:30.9]} 21. Ba3 {[%clk 0:01:29.2]} 21... Rf7 {[%clk 0:01:30.4]} 22.
gxf5 {[%clk 0:01:28.8]} 22... gxf5 {[%clk 0:01:30]} 23. d3 {[%clk 0:01:28.9]}
23... Bxc3 {[%clk 0:01:27.3]} 24. Rac1 {[%clk 0:01:28.5]} 24... exd3+ {[%clk
0:01:25.2]} 25. Kxd3 {[%clk 0:01:28.3]} 25... Be5 {[%clk 0:01:25.3]} 26. Rc2
{[%clk 0:01:18.3]} 26... Rg8 {[%clk 0:01:19.5]} 27. Rcf2 {[%clk 0:01:13.6]}
27... Rg5 {[%clk 0:01:11]} 28. Re2 {[%clk 0:00:54.1]} 28... Bd6 {[%clk
0:01:10.2]} 29. Bc1 {[%clk 0:00:41.9]} 29... f4 {[%clk 0:01:06.3]} 30. Rf3
{[%clk 0:00:16.3]} 30... Rxd5+ {[%clk 0:01:04.5]} 31. Kc2 {[%clk 0:00:16.6]}
31... Be5 {[%clk 0:00:41.8]} 32. Bd2 {[%clk 0:00:16.1]} 32... Kd6 {[%clk
0:00:40]} 33. Bb4+ {[%clk 0:00:16.2]} 33... Ke6 {[%clk 0:00:38.8]} 34. Rd2
{[%clk 0:00:05.8]} 34... Rfd7 {[%clk 0:00:27.9]} 35. Rxd5 {[%clk 0:00:05.5]}
35... Rxd5 {[%clk 0:00:27.3]} 36. Rd3 {[%clk 0:00:05.7]} 36... Rxd3 {[%clk
0:00:22.5]} 37. Kxd3 {[%clk 0:00:05.9]} 37... Kd5 {[%clk 0:00:21.6]} 38. Bd2
{[%clk 0:00:03.3]} 38... f3 {[%clk 0:00:20.2]} 39. h3 {[%clk 0:00:03.6]} 39...
Bd4 {[%clk 0:00:19.3]} 40. Bf4 {[%clk 0:00:03.3]} 40... f2 {[%clk 0:00:18.1]}
41. Ke2 {[%clk 0:00:03.6]} 41... Ke4 {[%clk 0:00:16.8]} 42. Bd6 {[%clk
0:00:02.6]} 42... a6 {[%clk 0:00:15.9]} 43. a4 {[%clk 0:00:02.1]} 43... Be5
{[%clk 0:00:15.1]} 44. Be7 {[%clk 0:00:02.1]} 44... Bd4 {[%clk 0:00:14.5]} 45.
Bd6 {[%clk 0:00:02.3]} 45... Be5 {[%clk 0:00:14.1]} 46. Be7 {[%clk 0:00:02.3]}
46... Kd4 {[%clk 0:00:13.9]} 0-1

[Event "*** Titled Tuesday Blitz"]
[Site "Chess.com"]
[Date "2020.05.26"]
[Round "5"]
[White "angryhorse9"]
[Black "Shivagami"]
[Result "1-0"]
[WhiteElo "2472"]
[BlackElo "2223"]
[TimeControl "180+1"]
[EndTime "10:57:12 PDT"]
[Termination "angryhorse9 won by resignation"]

1. e4 {[%clk 0:02:59.8]} 1... e5 {[%clk 0:02:56.1]} 2. Bc4 {[%clk 0:02:59.3]}
2... Nf6 {[%clk 0:02:54.9]} 3. d3 {[%clk 0:02:59.1]} 3... c6 {[%clk 0:02:54.4]}
4. Nf3 {[%clk 0:02:59.3]} 4... d5 {[%clk 0:02:50.6]} 5. Bb3 {[%clk 0:02:59.6]}
5... dxe4 {[%clk 0:02:35.2]} 6. Ng5 {[%clk 0:02:59]} 6... Be6 {[%clk 0:02:12.3]}
7. Bxe6 {[%clk 0:02:32]} 7... fxe6 {[%clk 0:02:09.8]} 8. Nxe4 {[%clk 0:02:32.5]}
8... Nxe4 {[%clk 0:01:57.8]} 9. dxe4 {[%clk 0:02:33.4]} 9... Qxd1+ {[%clk
0:01:48.2]} 10. Kxd1 {[%clk 0:02:30.8]} 10... Bc5 {[%clk 0:01:48.9]} 11. Ke2
{[%clk 0:02:30]} 11... O-O {[%clk 0:01:45.9]} 12. Nd2 {[%clk 0:02:28.4]} 12...
Rxf2+ {[%clk 0:01:43.7]} 13. Kd3 {[%clk 0:02:27.3]} 13... Rxg2 {[%clk
0:01:40.1]} 14. Nb3 {[%clk 0:02:26]} 14... Bb6 {[%clk 0:01:37.4]} 15. Be3 {[%clk
0:02:25.4]} 15... Bxe3 {[%clk 0:01:03.1]} 16. Kxe3 {[%clk 0:02:26.3]} 16... Nd7
{[%clk 0:00:57.4]} 17. Rad1 {[%clk 0:02:18]} 17... Nf6 {[%clk 0:00:54.5]} 18.
Rd2 {[%clk 0:02:18.2]} 18... Rg4 {[%clk 0:00:36.7]} 19. Nc5 {[%clk 0:02:16.9]}
19... b6 {[%clk 0:00:33.4]} 20. Nxe6 {[%clk 0:02:16.7]} 20... Rxe4+ {[%clk
0:00:33.9]} 21. Kf2 {[%clk 0:02:13.2]} 21... Nd5 {[%clk 0:00:30.9]} 22. Re1
{[%clk 0:02:00.6]} 22... Rxe1 {[%clk 0:00:28.3]} 23. Kxe1 {[%clk 0:02:01.5]}
23... h6 {[%clk 0:00:28.1]} 24. c4 {[%clk 0:02:00.2]} 24... Ne3 {[%clk
0:00:21.5]} 25. Rd7 {[%clk 0:01:57.9]} 25... Nf5 {[%clk 0:00:17.5]} 26. b3
{[%clk 0:01:50.5]} 26... Re8 {[%clk 0:00:17.3]} 27. Nc7 {[%clk 0:01:50.8]} 27...
Re7 {[%clk 0:00:17.4]} 28. Rd8+ {[%clk 0:01:50.2]} 28... Kf7 {[%clk 0:00:17.6]}
29. Na6 {[%clk 0:01:50]} 29... e4 {[%clk 0:00:17.7]} 30. Nb4 {[%clk 0:01:47.6]}
30... e3 {[%clk 0:00:17.9]} 31. Nxc6 {[%clk 0:01:48]} 31... Re4 {[%clk
0:00:15.4]} 32. Ke2 {[%clk 0:01:45.2]} 32... Nh4 {[%clk 0:00:13.4]} 33. Rd4
{[%clk 0:01:22.3]} 33... Rxd4 {[%clk 0:00:07.8]} 34. Nxd4 {[%clk 0:01:23.2]}
34... Ng2 {[%clk 0:00:07.6]} 35. Nc6 {[%clk 0:01:23.1]} 35... a6 {[%clk
0:00:06.5]} 36. Nb8 {[%clk 0:01:22.3]} 36... Ke6 {[%clk 0:00:06.7]} 37. Nxa6
{[%clk 0:01:22.2]} 37... Ke5 {[%clk 0:00:07.4]} 38. c5 {[%clk 0:01:15.9]} 38...
bxc5 {[%clk 0:00:05.9]} 39. Nxc5 {[%clk 0:01:16.8]} 39... Kd4 {[%clk 0:00:06.4]}
40. Ne6+ {[%clk 0:01:13.3]} 40... Ke5 {[%clk 0:00:05.9]} 41. Nxg7 {[%clk
0:01:11]} 41... Ke4 {[%clk 0:00:05.1]} 42. Nh5 {[%clk 0:01:06.9]} 42... Kd4
{[%clk 0:00:04.8]} 43. b4 {[%clk 0:01:00.6]} 43... Kc4 {[%clk 0:00:04.9]} 44. a3
{[%clk 0:00:58.4]} 44... Kb5 {[%clk 0:00:04.2]} 45. Kf3 {[%clk 0:00:53.7]} 45...
e2 {[%clk 0:00:02.9]} 46. Kxe2 {[%clk 0:00:52.7]} 46... Nh4 {[%clk 0:00:03.8]}
47. Kd3 {[%clk 0:00:49.8]} 47... Ka4 {[%clk 0:00:04.7]} 48. Kc4 {[%clk
0:00:47.3]} 48... Kxa3 {[%clk 0:00:03.2]} 49. b5 {[%clk 0:00:47.7]} 1-0

[Event "*** Titled Tuesday Blitz"]
[Site "Chess.com"]
[Date "2020.05.26"]
[Round "5"]
[White "Moon_stone123"]
[Black "MusicCityMaster"]
[Result "0-1"]
[WhiteElo "2511"]
[BlackElo "2366"]
[TimeControl "180+1"]
[EndTime "10:57:13 PDT"]
[Termination "MusicCityMaster won on time"]

1. Nf3 {[%clk 0:03:00.9]} 1... Nf6 {[%clk 0:02:59.4]} 2. g3 {[%clk 0:03:01]}
2... c5 {[%clk 0:02:59]} 3. Bg2 {[%clk 0:03:01.4]} 3... g6 {[%clk 0:02:59.6]} 4.
O-O {[%clk 0:03:01.3]} 4... Bg7 {[%clk 0:03:00.3]} 5. c4 {[%clk 0:03:00.7]} 5...
Nc6 {[%clk 0:02:59.6]} 6. Nc3 {[%clk 0:02:59.9]} 6... O-O {[%clk 0:02:59]} 7. d4
{[%clk 0:02:59.5]} 7... cxd4 {[%clk 0:02:59.9]} 8. Nxd4 {[%clk 0:03:00.2]} 8...
Nxd4 {[%clk 0:03:00.5]} 9. Qxd4 {[%clk 0:03:00.8]} 9... d6 {[%clk 0:03:01.1]}
10. Qd3 {[%clk 0:02:59.9]} 10... a6 {[%clk 0:03:00.5]} 11. Rd1 {[%clk
0:02:57.3]} 11... Qc7 {[%clk 0:02:59.1]} 12. Bg5 {[%clk 0:02:53.9]} 12... Be6
{[%clk 0:02:55.8]} 13. b3 {[%clk 0:02:48.5]} 13... Rab8 {[%clk 0:02:54.5]} 14.
Rac1 {[%clk 0:02:47.8]} 14... Rfc8 {[%clk 0:02:53.2]} 15. Nd5 {[%clk 0:02:40.1]}
15... Bxd5 {[%clk 0:02:50.7]} 16. cxd5 {[%clk 0:02:41]} 16... Qa5 {[%clk
0:02:44]} 17. Qd2 {[%clk 0:02:24.9]} 17... Qxd2 {[%clk 0:02:31.6]} 18. Bxd2
{[%clk 0:02:25.8]} 18... Kf8 {[%clk 0:01:46]} 19. e4 {[%clk 0:02:21.1]} 19...
Nd7 {[%clk 0:01:43.3]} 20. Bh3 {[%clk 0:02:19.4]} 20... Ke8 {[%clk 0:01:43.4]}
21. Kf1 {[%clk 0:01:54.9]} 21... Bb2 {[%clk 0:01:32.9]} 22. Rxc8+ {[%clk
0:01:37.3]} 22... Rxc8 {[%clk 0:01:32.9]} 23. Ke2 {[%clk 0:01:37.7]} 23... b5
{[%clk 0:01:18.6]} 24. Bxd7+ {[%clk 0:01:30]} 24... Kxd7 {[%clk 0:01:18.3]} 25.
Kd3 {[%clk 0:01:30.5]} 25... e6 {[%clk 0:01:09.8]} 26. Bb4 {[%clk 0:01:22.9]}
26... e5 {[%clk 0:01:03.8]} 27. Rd2 {[%clk 0:01:06]} 27... Bd4 {[%clk
0:01:02.9]} 28. f3 {[%clk 0:01:05.5]} 28... f5 {[%clk 0:01:01.2]} 29. Rc2 {[%clk
0:01:03.2]} 29... Rxc2 {[%clk 0:01:00.3]} 30. Kxc2 {[%clk 0:01:04.1]} 30... h5
{[%clk 0:00:50.1]} 31. h3 {[%clk 0:01:02.9]} 31... Bf2 {[%clk 0:00:38.3]} 32. g4
{[%clk 0:01:02.9]} 32... fxg4 {[%clk 0:00:37]} 33. fxg4 {[%clk 0:01:02.7]} 33...
hxg4 {[%clk 0:00:35.7]} 34. hxg4 {[%clk 0:01:03.6]} 34... Ke7 {[%clk 0:00:35.6]}
35. Kd3 {[%clk 0:01:02.5]} 35... Bh4 {[%clk 0:00:33.4]} 36. Ke2 {[%clk
0:01:00.6]} 36... Bg5 {[%clk 0:00:33.3]} 37. Kf3 {[%clk 0:01:00.2]} 37... Bc1
{[%clk 0:00:32]} 38. a4 {[%clk 0:00:55.6]} 38... bxa4 {[%clk 0:00:31.6]} 39.
bxa4 {[%clk 0:00:56.5]} 39... Bg5 {[%clk 0:00:29.9]} 40. Ke2 {[%clk 0:00:56.3]}
40... Kd7 {[%clk 0:00:29.3]} 41. Kd3 {[%clk 0:00:56.2]} 41... Kc7 {[%clk
0:00:29.5]} 42. Ba5+ {[%clk 0:00:55.6]} 42... Kd7 {[%clk 0:00:28.7]} 43. Kc4
{[%clk 0:00:55.2]} 43... Be3 {[%clk 0:00:28]} 44. Bb4 {[%clk 0:00:52.1]} 44...
Bb6 {[%clk 0:00:27.5]} 45. Bd2 {[%clk 0:00:51.1]} 45... Bd8 {[%clk 0:00:25.4]}
46. Be3 {[%clk 0:00:41.8]} 46... Ba5 {[%clk 0:00:24.5]} 47. Ba7 {[%clk
0:00:41.2]} 47... Bd8 {[%clk 0:00:23.9]} 48. Bb8 {[%clk 0:00:40.3]} 48... Bb6
{[%clk 0:00:23.2]} 49. a5 {[%clk 0:00:18.4]} 49... Bc5 {[%clk 0:00:23.3]} 50.
Kd3 {[%clk 0:00:02.7]} 50... Kc8 {[%clk 0:00:21.8]} 51. Kc4 {[%clk 0:00:02.9]}
51... Kxb8 {[%clk 0:00:21.5]} 52. Kb3 {[%clk 0:00:03.4]} 52... Kc7 {[%clk
0:00:21.7]} 53. Ka4 {[%clk 0:00:03.9]} 53... Kb7 {[%clk 0:00:21.9]} 54. Kb3
{[%clk 0:00:03.9]} 54... Bd4 {[%clk 0:00:21.9]} 55. Ka4 {[%clk 0:00:03.7]} 55...
Bc3 {[%clk 0:00:19.5]} 0-1

[Event "*** Titled Tuesday Blitz"]
[Site "Chess.com"]
[Date "2020.05.26"]
[Round "5"]
[White "VALPARAISO37"]
[Black "Carnivoras"]
[Result "0-1"]
[WhiteElo "2354"]
[BlackElo "2616"]
[TimeControl "180+1"]
[EndTime "10:57:16 PDT"]
[Termination "Carnivoras won on time"]

1. d4 {[%clk 0:03:00.9]} 1... d5 {[%clk 0:02:59.7]} 2. c4 {[%clk 0:03:00.8]}
2... c6 {[%clk 0:02:59.5]} 3. Nc3 {[%clk 0:03:00.9]} 3... e6 {[%clk 0:02:59.6]}
4. e3 {[%clk 0:03:00.9]} 4... Nf6 {[%clk 0:02:58]} 5. Nf3 {[%clk 0:03:00.4]}
5... Nbd7 {[%clk 0:02:57.2]} 6. Bd3 {[%clk 0:03:00.4]} 6... Bd6 {[%clk
0:02:57.1]} 7. O-O {[%clk 0:02:59.7]} 7... O-O {[%clk 0:02:57.6]} 8. e4 {[%clk
0:03:00]} 8... dxe4 {[%clk 0:02:58.1]} 9. Nxe4 {[%clk 0:02:59.8]} 9... Nxe4
{[%clk 0:02:58.1]} 10. Bxe4 {[%clk 0:03:00.1]} 10... e5 {[%clk 0:02:57.5]} 11.
Bg5 {[%clk 0:02:54.1]} 11... f6 {[%clk 0:02:54.7]} 12. c5 {[%clk 0:02:29.2]}
12... Be7 {[%clk 0:02:42.1]} 13. Be3 {[%clk 0:01:59.1]} 13... f5 {[%clk
0:02:41.2]} 14. Bd3 {[%clk 0:01:58.2]} 14... e4 {[%clk 0:02:39.4]} 15. Bc4+
{[%clk 0:01:57.9]} 15... Kh8 {[%clk 0:02:39.5]} 16. Ne1 {[%clk 0:01:51.4]} 16...
Nf6 {[%clk 0:02:36.9]} 17. h3 {[%clk 0:01:47.8]} 17... Nd5 {[%clk 0:02:33.8]}
18. Nc2 {[%clk 0:01:32]} 18... f4 {[%clk 0:02:32.5]} 19. Bd2 {[%clk 0:01:31.5]}
19... f3 {[%clk 0:02:30.8]} 20. Be3 {[%clk 0:01:27.1]} 20... fxg2 {[%clk
0:02:28.1]} 21. Kxg2 {[%clk 0:01:26.8]} 21... Rf3 {[%clk 0:02:28.1]} 22. Rh1
{[%clk 0:01:25.6]} 22... Qe8 {[%clk 0:02:24.3]} 23. Be2 {[%clk 0:01:06.3]} 23...
Qg6+ {[%clk 0:02:19.4]} 24. Kf1 {[%clk 0:01:05.8]} 24... Bxh3+ {[%clk
0:02:02.8]} 25. Ke1 {[%clk 0:01:05.4]} 25... Qg2 {[%clk 0:01:57.3]} 26. Bxf3
{[%clk 0:01:04.3]} 26... exf3 {[%clk 0:01:56.8]} 27. Rxh3 {[%clk 0:00:48.1]}
27... Qxh3 {[%clk 0:01:57.7]} 28. Kd2 {[%clk 0:00:47.2]} 28... Bf6 {[%clk
0:01:51.3]} 29. Qh1 {[%clk 0:00:46.3]} 29... Qf5 {[%clk 0:01:49.4]} 30. Rg1
{[%clk 0:00:35.1]} 30... Re8 {[%clk 0:01:46.3]} 31. Qh2 {[%clk 0:00:31.8]} 31...
Qe4 {[%clk 0:01:36.8]} 32. Qg3 {[%clk 0:00:21.8]} 32... Nxe3 {[%clk 0:01:33.5]}
33. fxe3 {[%clk 0:00:19.2]} 33... Qd5 {[%clk 0:01:22.6]} 34. b3 {[%clk 0:00:18]}
34... b6 {[%clk 0:01:14.7]} 35. cxb6 {[%clk 0:00:17.2]} 35... axb6 {[%clk
0:01:15.6]} 36. Rf1 {[%clk 0:00:17.2]} 36... c5 {[%clk 0:01:12.3]} 37. Qxf3
{[%clk 0:00:17.2]} 37... Qd7 {[%clk 0:01:12.3]} 38. Qf5 {[%clk 0:00:16.8]} 38...
Qd6 {[%clk 0:01:10.7]} 39. d5 {[%clk 0:00:16.2]} 39... Qh2+ {[%clk 0:01:08.6]}
40. Rf2 {[%clk 0:00:16]} 40... Qh1 {[%clk 0:01:03.8]} 41. d6 {[%clk 0:00:14.4]}
41... Rd8 {[%clk 0:01:03.1]} 42. d7 {[%clk 0:00:14.3]} 42... Qc6 {[%clk
0:01:02.4]} 43. Rh2 {[%clk 0:00:12.5]} 43... Qxd7+ {[%clk 0:01:02.1]} 44. Qxd7
{[%clk 0:00:12]} 44... Rxd7+ {[%clk 0:01:03]} 45. Ke2 {[%clk 0:00:12.7]} 45...
g6 {[%clk 0:01:02.6]} 46. a4 {[%clk 0:00:12.1]} 46... h5 {[%clk 0:01:02.2]} 47.
Rg2 {[%clk 0:00:12]} 47... Kh7 {[%clk 0:01:01.9]} 48. Ne1 {[%clk 0:00:12.4]}
48... g5 {[%clk 0:01:01.8]} 49. Nf3 {[%clk 0:00:12.7]} 49... g4 {[%clk
0:01:01.9]} 50. Nh2 {[%clk 0:00:10.5]} 50... Kg6 {[%clk 0:01:02.2]} 51. Nxg4
{[%clk 0:00:10.7]} 51... hxg4 {[%clk 0:01:02.5]} 52. Rxg4+ {[%clk 0:00:11.1]}
52... Kf5 {[%clk 0:01:02.9]} 53. Rf4+ {[%clk 0:00:11.3]} 53... Ke6 {[%clk
0:01:03.3]} 54. b4 {[%clk 0:00:11.9]} 54... cxb4 {[%clk 0:00:58.6]} 55. Rxb4
{[%clk 0:00:11.3]} 55... Bd8 {[%clk 0:00:59.1]} 56. Rb5 {[%clk 0:00:10.9]} 56...
Kd6 {[%clk 0:00:58.5]} 57. Kd3 {[%clk 0:00:10.9]} 57... Kc6+ {[%clk 0:00:59.4]}
58. Kc4 {[%clk 0:00:11.2]} 58... Rd1 {[%clk 0:00:57.5]} 59. Kc3 {[%clk
0:00:10.2]} 59... Ra1 {[%clk 0:00:56.8]} 60. Rb4 {[%clk 0:00:09.5]} 60... Be7
{[%clk 0:00:55.3]} 61. Rc4+ {[%clk 0:00:09.2]} 61... Bc5 {[%clk 0:00:55.3]} 62.
Kd3 {[%clk 0:00:09.6]} 62... Ra3+ {[%clk 0:00:55.1]} 63. Kd2 {[%clk 0:00:10.1]}
63... Kd5 {[%clk 0:00:51.9]} 64. Rc3 {[%clk 0:00:07.4]} 64... Bb4 {[%clk
0:00:51.7]} 65. Kc2 {[%clk 0:00:06.7]} 65... Rxc3+ {[%clk 0:00:51.4]} 66. Kb2
{[%clk 0:00:06.7]} 66... Kc4 {[%clk 0:00:50.8]} 67. a5 {[%clk 0:00:07.3]} 67...
bxa5 {[%clk 0:00:50.6]} 68. e4 {[%clk 0:00:07.4]} 68... a4 {[%clk 0:00:50.5]}
69. e5 {[%clk 0:00:08.1]} 69... a3+ {[%clk 0:00:51]} 70. Kb1 {[%clk 0:00:08.6]}
70... Kb3 {[%clk 0:00:51.1]} 71. e6 {[%clk 0:00:08.7]} 71... a2+ {[%clk
0:00:52]} 0-1

[Event "*** Titled Tuesday Blitz"]
[Site "Chess.com"]
[Date "2020.05.26"]
[Round "5"]
[White "Klavdia_Nik"]
[Black "Ashedu66"]
[Result "0-1"]
[WhiteElo "2053"]
[BlackElo "2170"]
[TimeControl "180+1"]
[EndTime "10:57:18 PDT"]
[Termination "Ashedu66 won on time"]

1. Nf3 {[%clk 0:03:00.9]} 1... d5 {[%clk 0:02:59.4]} 2. c4 {[%clk 0:03:01.1]}
2... e6 {[%clk 0:02:58.6]} 3. b3 {[%clk 0:03:01.2]} 3... Nf6 {[%clk 0:02:58.5]}
4. Bb2 {[%clk 0:03:01.6]} 4... Be7 {[%clk 0:02:58.7]} 5. g3 {[%clk 0:03:02.2]}
5... O-O {[%clk 0:02:58.5]} 6. Bg2 {[%clk 0:03:02.9]} 6... c6 {[%clk 0:02:57.6]}
7. O-O {[%clk 0:03:03.4]} 7... Nbd7 {[%clk 0:02:57.6]} 8. d3 {[%clk 0:03:02.9]}
8... a5 {[%clk 0:02:57.2]} 9. Nc3 {[%clk 0:02:58.2]} 9... Re8 {[%clk 0:02:39.7]}
10. Qc2 {[%clk 0:02:53.9]} 10... Bf8 {[%clk 0:02:32.1]} 11. e4 {[%clk
0:02:54.2]} 11... dxe4 {[%clk 0:02:16.4]} 12. dxe4 {[%clk 0:02:54.3]} 12... Nc5
{[%clk 0:02:13.7]} 13. Rad1 {[%clk 0:02:53.3]} 13... Qc7 {[%clk 0:02:09.2]} 14.
e5 {[%clk 0:02:48.3]} 14... Nfd7 {[%clk 0:02:02.6]} 15. Ne4 {[%clk 0:02:34.6]}
15... Nxe4 {[%clk 0:01:59]} 16. Qxe4 {[%clk 0:02:35]} 16... Nc5 {[%clk
0:01:58.7]} 17. Qc2 {[%clk 0:02:21.9]} 17... Bd7 {[%clk 0:01:54]} 18. Ng5 {[%clk
0:02:12.3]} 18... g6 {[%clk 0:01:50.5]} 19. h4 {[%clk 0:02:07.7]} 19... Red8
{[%clk 0:01:43.2]} 20. Kh2 {[%clk 0:01:53.2]} 20... Be8 {[%clk 0:01:38.8]} 21.
Ne4 {[%clk 0:01:42.6]} 21... Nxe4 {[%clk 0:01:34.7]} 22. Bxe4 {[%clk 0:01:42.9]}
22... Bg7 {[%clk 0:01:33.6]} 23. f4 {[%clk 0:01:42.2]} 23... Rxd1 {[%clk
0:01:30]} 24. Rxd1 {[%clk 0:01:41]} 24... Rd8 {[%clk 0:01:29.7]} 25. Bc3 {[%clk
0:01:33.7]} 25... Bf8 {[%clk 0:01:12.7]} 26. h5 {[%clk 0:01:31.9]} 26... Kg7
{[%clk 0:01:05.1]} 27. hxg6 {[%clk 0:01:29.1]} 27... hxg6 {[%clk 0:01:04.3]} 28.
Kg2 {[%clk 0:01:25.8]} 28... Rxd1 {[%clk 0:01:01.3]} 29. Qxd1 {[%clk 0:01:25]}
29... a4 {[%clk 0:00:49.9]} 30. b4 {[%clk 0:01:14.1]} 30... b6 {[%clk
0:00:38.7]} 31. Qxa4 {[%clk 0:01:01]} 31... b5 {[%clk 0:00:31.9]} 32. Qb3 {[%clk
0:00:56.3]} 32... Qa7 {[%clk 0:00:26.7]} 33. c5 {[%clk 0:00:54.3]} 33... Be7
{[%clk 0:00:24.8]} 34. Kf3 {[%clk 0:00:52.8]} 34... Bd7 {[%clk 0:00:24.7]} 35.
Bb2 {[%clk 0:00:39.5]} 35... Bc8 {[%clk 0:00:15.3]} 36. a3 {[%clk 0:00:37.8]}
36... Bb7 {[%clk 0:00:13.8]} 37. Qd3 {[%clk 0:00:34.7]} 37... Qa8 {[%clk
0:00:11.8]} 38. Qd7 {[%clk 0:00:26.1]} 38... Kf8 {[%clk 0:00:11.7]} 39. g4
{[%clk 0:00:20.5]} 39... Qa4 {[%clk 0:00:07.9]} 40. Qd3 {[%clk 0:00:16.7]} 40...
Kg7 {[%clk 0:00:06.5]} 41. f5 {[%clk 0:00:16]} 41... gxf5 {[%clk 0:00:06.6]} 42.
gxf5 {[%clk 0:00:16.3]} 42... Bg5 {[%clk 0:00:06.6]} 43. fxe6 {[%clk 0:00:14.3]}
43... fxe6 {[%clk 0:00:06.6]} 44. Kg4 {[%clk 0:00:12]} 44... Bh6 {[%clk
0:00:04.7]} 45. Qd7+ {[%clk 0:00:09.7]} 45... Kf8 {[%clk 0:00:02.6]} 46. Qxe6
{[%clk 0:00:02.7]} 46... Qd1+ {[%clk 0:00:01.8]} 47. Kf5 {[%clk 0:00:01.9]}
47... Qh5+ {[%clk 0:00:01.2]} 0-1

[Event "*** Titled Tuesday Blitz"]
[Site "Chess.com"]
[Date "2020.05.26"]
[Round "5"]
[White "ameetghasi100"]
[Black "GeorgMeier"]
[Result "0-1"]
[WhiteElo "2708"]
[BlackElo "2984"]
[TimeControl "180+1"]
[EndTime "10:57:19 PDT"]
[Termination "GeorgMeier won by checkmate"]

1. Nf3 {[%clk 0:03:00.9]} 1... d5 {[%clk 0:02:59.3]} 2. g3 {[%clk 0:03:01.4]}
2... Bg4 {[%clk 0:02:58]} 3. Bg2 {[%clk 0:03:01.8]} 3... e6 {[%clk 0:02:57.8]}
4. O-O {[%clk 0:03:01.9]} 4... Nf6 {[%clk 0:02:57.8]} 5. d3 {[%clk 0:03:02]}
5... Be7 {[%clk 0:02:57.3]} 6. b3 {[%clk 0:03:00.8]} 6... O-O {[%clk 0:02:56.7]}
7. h3 {[%clk 0:03:00.6]} 7... Bh5 {[%clk 0:02:55.1]} 8. Bb2 {[%clk 0:02:47.8]}
8... c5 {[%clk 0:02:55.1]} 9. c4 {[%clk 0:02:47.7]} 9... Nc6 {[%clk 0:02:50.4]}
10. a3 {[%clk 0:02:46.4]} 10... d4 {[%clk 0:02:41.1]} 11. b4 {[%clk 0:02:44.8]}
11... cxb4 {[%clk 0:02:37.9]} 12. axb4 {[%clk 0:02:45.7]} 12... Bxb4 {[%clk
0:02:38]} 13. Qa4 {[%clk 0:02:40.6]} 13... Bc5 {[%clk 0:02:10.7]} 14. Nbd2
{[%clk 0:02:29.9]} 14... e5 {[%clk 0:01:52.8]} 15. Nb3 {[%clk 0:02:19.5]} 15...
Bb6 {[%clk 0:01:35.2]} 16. g4 {[%clk 0:02:09.7]} 16... Bg6 {[%clk 0:01:34.1]}
17. Nh4 {[%clk 0:02:05.9]} 17... Re8 {[%clk 0:01:22.1]} 18. c5 {[%clk 0:01:46]}
18... Bc7 {[%clk 0:01:19.7]} 19. Qc4 {[%clk 0:01:37.9]} 19... Qd7 {[%clk
0:01:12]} 20. Nd2 {[%clk 0:01:33.8]} 20... Rad8 {[%clk 0:01:09.1]} 21. Nxg6
{[%clk 0:01:08.8]} 21... hxg6 {[%clk 0:01:08.8]} 22. Rab1 {[%clk 0:01:01.4]}
22... Nd5 {[%clk 0:00:32.2]} 23. Ba1 {[%clk 0:00:59.3]} 23... Nf4 {[%clk
0:00:25.2]} 24. Rfe1 {[%clk 0:00:51.1]} 24... Ba5 {[%clk 0:00:23.1]} 25. Qc2
{[%clk 0:00:33.9]} 25... Nb4 {[%clk 0:00:18.6]} 26. Qc4 {[%clk 0:00:23.2]} 26...
Nbd5 {[%clk 0:00:17.6]} 27. Nb3 {[%clk 0:00:10.6]} 27... Bxe1 {[%clk 0:00:16.1]}
28. Rxe1 {[%clk 0:00:11.5]} 28... Nxg2 {[%clk 0:00:16.2]} 29. Kxg2 {[%clk
0:00:12.4]} 29... Nf4+ {[%clk 0:00:16.4]} 30. Kh2 {[%clk 0:00:12.5]} 30... Qc6
{[%clk 0:00:15]} 31. f3 {[%clk 0:00:12.4]} 31... b6 {[%clk 0:00:15.5]} 32. Bb2
{[%clk 0:00:10.7]} 32... Rc8 {[%clk 0:00:13.9]} 33. Bc1 {[%clk 0:00:10.9]} 33...
Ne6 {[%clk 0:00:13.3]} 34. Ba3 {[%clk 0:00:11.4]} 34... bxc5 {[%clk 0:00:12.6]}
35. h4 {[%clk 0:00:09.8]} 35... Qc7 {[%clk 0:00:11.8]} 36. Nd2 {[%clk
0:00:09.9]} 36... e4+ {[%clk 0:00:12]} 37. Kg1 {[%clk 0:00:10.6]} 37... exd3
{[%clk 0:00:11.3]} 38. Ne4 {[%clk 0:00:10.3]} 38... dxe2 {[%clk 0:00:10.8]} 39.
Rxe2 {[%clk 0:00:10.5]} 39... Nf4 {[%clk 0:00:10.8]} 40. Re1 {[%clk 0:00:10.4]}
40... Qd7 {[%clk 0:00:10.1]} 41. h5 {[%clk 0:00:10.3]} 41... gxh5 {[%clk
0:00:09.8]} 42. Qc1 {[%clk 0:00:08.1]} 42... Nh3+ {[%clk 0:00:07.2]} 43. Kg2
{[%clk 0:00:06]} 43... hxg4 {[%clk 0:00:07.3]} 44. Kg3 {[%clk 0:00:06.5]} 44...
gxf3 {[%clk 0:00:06]} 45. Nxc5 {[%clk 0:00:06.6]} 45... Qd5 {[%clk 0:00:04.6]}
46. Rxe8+ {[%clk 0:00:05.3]} 46... Rxe8 {[%clk 0:00:05.1]} 47. Kxh3 {[%clk
0:00:06.2]} 47... f2 {[%clk 0:00:05]} 48. Qf4 {[%clk 0:00:04.3]} 48... Qh1+
{[%clk 0:00:04.1]} 49. Kg3 {[%clk 0:00:04.5]} 49... Qg1+ {[%clk 0:00:04.2]} 50.
Kh4 {[%clk 0:00:04.1]} 50... f1=Q {[%clk 0:00:05.1]} 51. Qg3 {[%clk 0:00:04.7]}
51... Qh1+ {[%clk 0:00:05]} 52. Kg4 {[%clk 0:00:03.4]} 52... Qe2+ {[%clk
0:00:05]} 53. Kf4 {[%clk 0:00:03.4]} 53... Qh6+ {[%clk 0:00:04.7]} 54. Qg5
{[%clk 0:00:03]} 54... Qe3+ {[%clk 0:00:05.1]} 55. Kg4 {[%clk 0:00:02.5]} 55...
Qhxg5# {[%clk 0:00:05.8]} 0-1